bitfinex/quotes_ETHUSD_20220212
["timestamp","ask_amount","ask_price","bid_price","bid_amount"]
[1644709635539,0.01021717,2904.8,2904.5,0.81235535]
[1644709635741,0.00391292,2905.3,2904.5,0.81235535]
[1644709635941,0.01021723,2904.8,2904.5,1.11235535]
[1644709636839,0.00391292,2905.4,2904.5,1.11235535]
[1644709637082,0.00921989,2904.8,2904.5,1.11235535]
[1644709638087,0.04477572,2905.2,2904.5,1.11235535]
[1644709638088,0.00391292,2905.2,2904.5,1.11235535]
[1644709638388,1.46457465,2905.1,2904.5,1.11235535]
[1644709638887,1.46849583,2905.0,2904.5,1.06235535]
[1644709639086,0.00391292,2905.4,2904.5,1.06235535]
[1644709639289,1.46457336,2905.3,2904.5,1.06235535]
[1644709639487,0.01021711,2904.9,2904.5,1.06235535]
[1644709640490,0.00391292,2905.4,2904.5,1.06235535]
[1644709640688,0.01021717,2904.8,2904.5,1.06235535]
[1644709641335,0.01021717,2904.8,2904.5,2.09484664]
[1644709641736,0.00391292,2905.4,2904.5,2.23444664]
[1644709641937,0.01021723,2904.8,2904.5,2.40654664]
[1644709642541,0.01021723,2904.8,2904.6,0.495]
[1644709642940,0.00391292,2905.4,2904.6,1.495]
[1644709643144,0.01021717,2904.8,2904.7,0.17209129]
[1644709643343,1e-08,2904.8,2904.7,0.66709129]
[1644709643543,1e-08,2904.8,2904.7,0.96709129]
[1644709643741,1e-08,2904.8,2904.7,21.45829129]
[1644709643941,1e-08,2904.8,2904.7,22.45829129]
[1644709644142,0.00391292,2906.1,2904.7,22.32709129]
[1644709644341,1.63639856,2906.0,2905.4,0.95276626]
[1644709644603,0.60913651,2905.3,2905.0,1.17452888]
[1644709644792,0.60913651,2905.3,2905.1,0.9669]
[1644709645393,0.60913651,2905.3,2905.2,1.21588877]
[1644709645697,0.60913651,2905.3,2905.2,2.01088877]
[1644709646093,0.60913651,2905.3,2905.2,3.01088877]
[1644709646492,0.60913651,2905.3,2905.2,3.77718673]
[1644709646693,0.00391292,2906.2,2905.3,1.5]
[1644709646993,1.46416186,2906.1,2905.5,1.03212]
[1644709647198,1.46807478,2906.0,2905.6,0.495]
[1644709647400,1.46416186,2905.9,2905.6,0.495]
[1644709647598,5.74908102,2906.6,2905.6,0.795]
[1644709647599,0.00391292,2906.5,2905.6,0.795]
[1644709647799,1.46412625,2906.4,2905.7,1.71993]
[1644709647999,0.01021819,2905.9,2905.7,2.21493]
[1644709648202,0.01021819,2905.9,2905.7,3.21493]
[1644709648443,0.01021819,2905.9,2905.8,1.0833542]
[1644709648641,0.01021819,2905.9,2905.8,2.1783542]
[1644709648840,0.01021819,2905.9,2905.8,3.1783542]
[1644709649045,0.00391292,2906.7,2905.8,3.1783542]
[1644709649241,0.04086641,2906.4,2906.0,0.85996]
[1644709649440,0.04086641,2906.4,2906.1,0.495]
[1644709649441,1.46399057,2906.3,2906.1,0.495]
[1644709649840,1.46399057,2906.3,2906.1,0.795]
[1644709650241,1.46399057,2906.2,2906.1,0.795]
[1644709650441,0.01021771,2906.3,2906.1,0.795]
[1644709650642,1.46399057,2906.2,2906.1,0.96698]
[1644709650845,0.01021771,2906.3,2906.1,1.96698]
[1644709651043,0.01021771,2906.3,2906.2,0.3]
[1644709651243,0.00391292,2906.9,2906.2,0.3]
[1644709651443,1.46394091,2906.8,2906.2,0.3]
[1644709651649,0.01021771,2906.3,2906.2,0.3]
[1644709651842,1.47415862,2906.3,2906.2,0.3]
[1644709652492,1.46394091,2906.3,2906.2,0.3]
[1644709652689,0.01021765,2906.4,2906.2,0.3]
[1644709652893,1.46394091,2906.3,2906.2,0.3]
[1644709653093,0.01021765,2906.4,2906.2,0.3]
[1644709653294,0.04086446,2906.8,2906.4,1.5]
[1644709653497,0.04086446,2906.8,2906.6,6.185]
[1644709653498,1.46377402,2906.7,2906.6,6.185]
[1644709653694,0.65088102,2907.6,2906.8,20.06]
[1644709653892,4.8071343,2908.1,2906.9,1.495]
[1644709653893,0.00391323,2907.0,2906.9,1.495]
[1644709654094,5.39238102,2908.1,2906.9,1.495]
[1644709654095,5.39238102,2908.1,2907.0,1.55]
[1644709654295,1.87278139,2908.1,2907.4,1.05387922]
[1644709654494,0.04676866,2908.0,2907.4,1.05387922]
[1644709654694,0.04676866,2908.0,2907.3,0.495]
[1644709654896,0.04620023,2907.9,2907.3,0.795]
[1644709655094,0.64708125,2908.1,2907.3,1.95456]
[1644709655295,4.3706967,2908.3,2907.3,1.095]
[1644709655495,4.3706967,2908.3,2907.3,0.495]
[1644709655697,0.8706967,2908.2,2907.3,0.495]
[1644709655935,3.5,2908.3,2907.3,0.495]
[1644709655936,4.3706967,2908.3,2907.3,0.495]
[1644709656138,0.8706967,2908.3,2907.3,0.795]
[1644709656332,0.01020845,2907.9,2907.3,0.795]
[1644709656534,0.01020845,2907.9,2907.3,0.495]
[1644709657138,0.01020845,2907.9,2907.3,1.01140527]
[1644709657337,0.97836551,2908.1,2907.3,1.01140527]
[1644709657538,0.01020863,2907.7,2907.3,1.18330527]
[1644709657737,0.01020863,2907.7,2907.3,1.78330527]
[1644709657939,0.01020863,2907.7,2907.4,0.8595]
[1644709658338,0.01020863,2907.7,2907.4,1.8595]
[1644709658538,1.2415,2908.6,2907.4,1.8595]
[1644709658741,1.2415,2908.6,2907.8,1.16757273]
[1644709658742,0.04082864,2908.1,2907.8,1.16757273]
[1644709658940,0.04082864,2908.1,2907.5,0.495]
[1644709659141,0.04082864,2908.1,2907.5,0.795]
[1644709659597,0.04082864,2908.1,2907.6,0.3]
[1644709659785,1.2415,2908.6,2907.6,0.795]
[1644709659985,0.01020838,2907.9,2907.6,0.495]
[1644709660990,1.11820485,2908.3,2907.6,0.495]
[1644709661189,0.01020845,2907.9,2907.6,0.495]
[1644709662194,1.11820485,2908.3,2907.6,0.495]
[1644709662392,0.01020845,2907.9,2907.6,0.795]
[1644709662591,1.11924096,2908.3,2907.6,0.495]
[1644709662793,1.11924096,2908.3,2907.6,0.795]
[1644709663195,1.11924096,2908.3,2907.6,0.495]
[1644709663436,1.0784133,2908.3,2907.6,0.795]
[1644709664638,1.0784133,2908.3,2907.4,1.86555853]
[1644709664835,0.00663992,2908.1,2907.5,0.495]
[1644709665037,0.00663992,2908.1,2907.6,0.1719]
[1644709665239,0.00663992,2908.1,2907.7,0.80928888]
[1644709665437,0.00663992,2908.1,2907.7,7.16618888]
[1644709665636,0.00663992,2908.1,2907.8,0.30169129]
[1644709665839,3.5,2909.1,2907.9,0.6669]
[1644709666237,0.00663992,2908.0,2907.9,1.85885081]
[1644709666639,0.00663992,2908.0,2907.9,2.03072081]
[1644709666837,0.00663992,2908.0,2907.9,1.13877]
[1644709667095,3.5,2908.8,2907.9,1.43877]
[1644709667290,0.0102082,2908.1,2907.9,1.43877]
[1644709667693,0.0102082,2908.1,2907.9,1.095]
[1644709667894,0.0102082,2908.1,2907.6,0.6669]
[1644709668093,0.84261506,2908.2,2907.6,0.6669]
[1644709668294,8.28909023,2909.1,2907.6,0.6669]
[1644709668494,0.00963688,2908.1,2907.6,1.9011]
[1644709668694,0.00963688,2908.1,2907.7,0.1719]
[1644709668894,0.00963688,2908.1,2907.8,0.495]
[1644709669393,1.1783,2909.2,2907.8,0.795]
[1644709669594,0.03853875,2908.8,2907.9,0.34377]
[1644709669795,0.03853875,2908.8,2908.1,0.3]
[1644709669995,0.03853875,2908.8,2908.2,0.495]
[1644709670598,1.03954544,2908.5,2908.2,0.495]
[1644709671237,0.00963636,2908.6,2908.2,0.495]
[1644709671739,0.00392159,2908.9,2908.2,0.795]
[1644709671936,0.00963647,2908.5,2908.2,0.795]
[1644709672143,0.00963647,2908.5,2908.2,0.495]
[1644709672943,0.00392159,2908.9,2908.2,0.495]
[1644709673244,0.92798128,2908.4,2908.2,0.495]
[1644709674142,0.92798128,2908.4,2907.9,0.6669]
[1644709674591,0.93751021,2908.4,2907.9,0.6669]
[1644709674782,0.93751021,2908.4,2907.9,0.9669]
[1644709675383,0.92798128,2908.4,2907.9,0.9669]
[1644709675584,0.00952909,2908.3,2907.9,0.9669]
[1644709675784,0.01345068,2908.3,2907.9,0.9669]
[1644709676586,0.00392159,2908.3,2907.9,0.9669]
[1644709676786,0.00967764,2908.2,2907.9,0.9669]
[1644709677192,0.00967764,2908.2,2907.9,0.6669]
[1644709677395,0.00967764,2908.2,2907.4,0.1719]
[1644709677591,0.00967764,2908.2,2907.3,0.76640527]
[1644709677791,0.00967764,2908.2,2907.3,0.25]
[1644709677992,0.00967762,2908.0,2907.2,0.00968042]
[1644709678335,1.18450993,2907.5,2907.2,0.00968042]
[1644709678938,1.18450993,2907.5,2906.8,0.1719]
[1644709679137,0.17582159,2907.4,2906.8,0.1719]
[1644709679337,0.17582159,2907.4,2907.2,0.00967939]
[1644709679540,0.1719,2907.4,2907.2,0.00967939]
[1644709679936,0.1719,2907.4,2907.2,7.939e-05]
[1644709680140,0.1719,2907.4,2906.0,0.25]
[1644709680141,7.04892159,2907.3,2906.0,0.25]
[1644709680338,3.6719,2907.2,2906.0,0.25]
[1644709680538,0.49892159,2907.1,2906.0,0.25]
[1644709680741,3.5,2907.0,2906.0,0.25]
[1644709680936,0.00392159,2906.9,2906.0,0.25]
[1644709681136,0.1719,2906.8,2906.0,0.25]
[1644709681339,0.00392159,2906.7,2905.5,0.1719]
[1644709681541,0.1719,2907.2,2906.1,0.17209129]
[1644709681542,0.00392159,2907.1,2906.1,0.17209129]
[1644709682492,1.09253827,2907.0,2906.2,0.1719]
[1644709682793,0.00392159,2906.9,2906.2,0.1719]
[1644709682992,0.00392159,2907.2,2906.2,0.34399129]
[1644709683393,0.00392159,2907.2,2906.3,0.495]
[1644709683693,0.00392159,2907.2,2906.4,0.34399129]
[1644709683893,0.00392159,2907.2,2906.5,0.495]
[1644709684094,0.00392159,2907.2,2906.6,0.0102107]
[1644709684393,0.00392159,2907.2,2906.6,0.35420199]
[1644709684596,0.00392159,2907.2,2906.7,0.17209129]
[1644709684993,0.13819996,2907.5,2906.7,0.17209129]
[1644709684994,0.00392159,2907.4,2906.7,0.17209129]
[1644709685195,0.00392159,2907.4,2906.8,0.18211045]
[1644709685595,0.00392159,2907.4,2906.9,0.495]
[1644709685843,0.01020736,2907.7,2907.0,0.1719]
[1644709685844,0.00392159,2907.6,2907.0,0.1719]
[1644709686043,0.01020736,2907.7,2907.0,0.1719]
[1644709686044,0.01020736,2907.7,2907.0,0.34399129]
[1644709686245,0.00392159,2907.8,2907.1,0.495]
[1644709686449,0.01020816,2907.7,2907.2,0.1719]
[1644709686650,0.01020816,2907.7,2907.3,0.495]
[1644709686849,0.01020816,2907.7,2907.3,0.795]
[1644709687352,0.00392159,2907.8,2907.3,0.795]
[1644709687750,0.01020862,2907.7,2907.3,0.795]
[1644709688154,0.01020862,2907.7,2907.3,1.095]
[1644709688351,0.01020862,2907.7,2907.4,0.17209129]
[1644709688652,0.00392159,2908.2,2907.6,0.85937]
[1644709688851,0.01020862,2907.7,2907.6,2.3141823]
[1644709689050,0.01020862,2907.7,2907.6,2.8091823]
[1644709689451,0.01020862,2907.7,2907.6,3.8091823]
[1644709689687,0.01020862,2907.7,2907.6,4.1529323]
[1644709689889,0.00392159,2908.5,2907.6,4.32502359]
[1644709690188,0.00392159,2908.5,2907.7,1.0]
[1644709690189,0.01020857,2907.8,2907.7,1.0]
[1644709690384,0.01020857,2907.8,2907.7,1.495]
[1644709690985,0.1719,2908.9,2907.7,1.66709129]
[1644709690986,0.00392159,2908.8,2907.7,1.66709129]
[1644709691188,0.00392159,2908.8,2908.0,0.85937]
[1644709691386,0.00392159,2908.8,2908.1,0.495]
[1644709691387,0.04082767,2908.3,2908.1,0.495]
[1644709691786,0.04082767,2908.3,2908.1,0.795]
[1644709692192,0.86475232,2908.5,2908.1,0.495]
[1644709692394,0.0102079,2908.3,2908.1,0.495]
[1644709693334,0.00392159,2908.9,2908.1,0.495]
[1644709693538,0.00392159,2908.9,2908.1,0.795]
[1644709693736,0.0102079,2908.3,2908.1,1.095]
[1644709694635,0.00392159,2908.8,2908.1,1.095]
[1644709694839,0.0102079,2908.3,2908.1,1.095]
[1644709695838,0.04474705,2908.8,2908.1,1.095]
[1644709695839,0.00392159,2908.8,2908.1,1.095]
[1644709696039,0.0102079,2908.3,2908.1,1.095]
[1644709696938,0.04474705,2908.8,2908.1,1.095]
[1644709696939,0.00392159,2908.8,2908.1,1.095]
[1644709697190,0.0102079,2908.3,2908.1,1.095]
[1644709698191,0.00392159,2908.8,2908.1,1.095]
[1644709698391,0.0102079,2908.3,2908.1,1.095]
[1644709699393,0.04474705,2908.8,2908.1,1.095]
[1644709699394,0.00392159,2908.8,2908.1,1.095]
[1644709699592,0.0102079,2908.3,2908.1,1.095]
[1644709700592,0.00392159,2908.8,2908.1,3.03862103]
[1644709700836,0.0102079,2908.3,2908.2,1.0]
[1644709701035,0.04082546,2908.8,2908.2,1.0]
[1644709701036,0.04082546,2908.8,2908.2,2.35428]
[1644709701236,0.04082546,2908.8,2908.3,0.1719]
[1644709701437,0.04082546,2908.8,2908.4,0.495]
[1644709701637,0.04082546,2908.8,2908.5,0.1719]
[1644709701938,0.17582159,2909.7,2908.5,0.1719]
[1644709701939,0.17582159,2909.7,2908.6,0.495]
[1644709702141,0.17582159,2909.7,2908.6,0.96709129]
[1644709702142,1.00133458,2909.3,2908.6,0.96709129]
[1644709702441,0.00392159,2909.2,2908.6,0.96709129]
[1644709703244,0.01020703,2909.0,2908.6,0.96709129]
[1644709704248,0.00392159,2909.2,2908.6,0.96709129]
[1644709704446,10.54502185,2910.3,2908.7,0.17209129]
[1644709704447,0.01020716,2908.9,2908.7,0.17209129]
[1644709704690,0.01020716,2908.9,2908.8,0.495]
[1644709705095,0.01020716,2908.9,2908.8,0.96709129]
[1644709705293,0.04082251,2909.4,2908.8,1.26709129]
[1644709705497,0.00392159,2909.8,2909.1,0.85905]
[1644709705694,0.04082226,2909.4,2909.2,0.495]
[1644709706296,0.04082226,2909.4,2909.2,1.495]
[1644709706594,0.00392159,2909.8,2909.2,1.495]
[1644709706797,0.00392159,2909.8,2909.1,0.3]
[1644709706798,1.4622771,2909.7,2909.1,0.3]
[1644709706994,0.97332621,2909.3,2909.1,0.3]
[1644709707200,0.01020654,2909.4,2909.0,0.3]
[1644709707398,0.01020654,2909.4,2908.9,0.795]
[1644709707599,0.00392594,2909.8,2908.9,0.795]
[1644709707799,0.1718,2910.0,2908.9,0.795]
[1644709707800,1.46238957,2909.7,2908.9,0.795]
[1644709708102,1.11631551,2909.6,2908.9,0.795]
[1644709708345,4.17834323,2910.1,2908.9,0.795]
[1644709709347,1.0026952,2909.6,2908.9,0.795]
[1644709710949,1.0026952,2909.6,2908.7,3.3077]
[1644709710950,3.40406976,2909.5,2908.7,3.3077]
[1644709711150,3.40406976,2909.5,2908.5,0.495]
[1644709711352,3.40406976,2909.5,2908.3,0.4218]
[1644709711353,0.495,2909.4,2908.3,0.4218]
[1644709711548,4.3937529,2909.3,2907.9,1.88284]
[1644709711748,1.00130872,2909.1,2909.0,0.01020782]
[1644709711947,0.02041563,2908.9,2908.0,0.1718]
[1644709713196,0.02041563,2908.9,2908.0,1.3211111]
[1644709713398,0.02041563,2908.9,2908.0,2.6211111]
[1644709713895,0.02041563,2908.9,2908.1,0.495]
[1644709714097,0.02041563,2908.9,2908.2,0.1719]
[1644709714295,0.02041563,2908.9,2908.3,0.495]
[1644709714497,0.02041563,2908.9,2908.3,2.21345]
[1644709714695,0.02041563,2908.9,2908.3,2.51345]
[1644709714895,0.02041563,2908.9,2908.4,1.0]
[1644709715097,0.02041563,2908.9,2908.5,0.1719]
[1644709715295,0.02041563,2908.9,2908.5,0.30361418]
[1644709715495,0.02041563,2908.9,2908.5,0.60361418]
[1644709715940,0.02041563,2908.9,2908.5,0.30361418]
[1644709716137,0.02041563,2908.9,2908.4,1.795]
[1644709716340,0.02041563,2908.9,2908.5,1.03130129]
[1644709716540,0.1719,2909.7,2908.7,1.55]
[1644709716541,0.00660175,2909.6,2908.7,1.55]
[1644709716740,0.00660175,2909.6,2908.8,2.38473]
[1644709716940,0.00660175,2909.6,2908.8,3.99442129]
[1644709717142,0.00660175,2909.6,2908.9,0.30569129]
[1644709717343,3.5,2910.1,2909.0,0.6668]
[1644709717543,0.8507875,2910.1,2909.3,0.85901]
[1644709717742,0.8507875,2910.1,2909.4,0.1718]
[1644709717943,0.8507875,2910.1,2909.3,0.85901]
[1644709718145,0.8507875,2910.1,2909.2,1.66311203]
[1644709718345,0.8507875,2910.1,2909.2,0.495]
[1644709718949,0.8507875,2910.1,2908.7,0.25]
[1644709718950,8.43067834,2910.0,2908.7,0.25]
[1644709719148,5.0,2909.8,2908.7,0.25]
[1644709719349,3.6718,2909.7,2908.4,0.1718]
[1644709719598,1.10659004,2909.0,2908.4,0.1718]
[1644709720193,4.8044,2909.7,2908.9,0.00360823]
[1644709721094,4.8044,2909.7,2908.1,1.57706521]
[1644709721095,1.00405469,2909.2,2908.1,2.87706521]
[1644709721292,1.00405469,2909.2,2908.9,0.01020587]
[1644709722299,3.45941336,2909.1,2908.2,0.1718]
[1644709722500,3.40941336,2909.1,2908.9,0.0102053]
[1644709722698,0.00393553,2909.0,2908.9,0.0102053]
[1644709723098,3.51599689,2909.1,2908.9,0.0102053]
[1644709723334,1.00405469,2909.2,2908.9,0.0102053]
[1644709723335,1.00799022,2909.2,2908.9,0.0102053]
[1644709723639,1.00405469,2909.2,2908.9,0.01020519]
[1644709724436,0.75405469,2909.2,2908.9,0.01020519]
[1644709724636,0.75405469,2909.2,2908.2,0.1718]
[1644709724837,3.60553864,2909.1,2908.9,0.0102053]
[1644709725038,0.75405469,2909.2,2908.9,0.0102053]
[1644709725942,0.75405469,2909.2,2908.2,0.1718]
[1644709726144,0.00393553,2909.1,2908.9,0.0102053]
[1644709726343,0.75405469,2909.2,2908.9,0.0102053]
[1644709726944,3.42129629,2909.1,2908.2,0.69315576]
[1644709727199,3.48331263,2909.1,2908.2,0.99315576]
[1644709727400,0.75405469,2909.2,2908.9,0.0102053]
[1644709727599,0.00394049,2909.0,2908.9,0.0102053]
[1644709727798,0.75405469,2909.2,2908.9,0.0102053]
[1644709728000,1.46263922,2909.1,2908.9,0.0102053]
[1644709728199,1.46263922,2909.1,2908.2,0.99315576]
[1644709728400,0.00394049,2909.0,2908.2,0.99315576]
[1644709728600,0.00394049,2909.0,2908.9,0.0102053]
[1644709728804,1.46263745,2909.0,2908.9,0.0102053]
[1644709729000,1.46263745,2909.1,2908.9,0.0102053]
[1644709729399,4.89358983,2909.1,2908.2,0.99315576]
[1644709729600,1.46657794,2909.0,2908.9,0.01020519]
[1644709729802,1.46263745,2909.0,2908.9,0.01020519]
[1644709730201,1.31263745,2909.1,2908.9,0.01020519]
[1644709730404,3.49254176,2909.0,2908.9,0.01020519]
[1644709730603,0.75405469,2909.2,2908.2,0.69315576]
[1644709730604,0.75799518,2909.2,2908.2,0.69315576]
[1644709730835,0.00394049,2908.9,2908.2,0.69315576]
[1644709731041,3.42740654,2909.1,2908.9,0.01020519]
[1644709731241,0.75405469,2909.2,2908.9,0.01020519]
[1644709731741,0.00394049,2909.4,2908.9,0.01020519]
[1644709731941,3.69437613,2909.6,2908.5,0.1718]
[1644709732141,3.70457883,2909.6,2908.9,0.0102053]
[1644709733244,1.02656616,2909.2,2908.9,0.01020576]
[1644709734247,1.02656616,2909.2,2908.5,0.1718]
[1644709734445,0.00394049,2909.1,2908.9,0.0102053]
[1644709734690,4.29700181,2909.6,2908.9,0.0102053]
[1644709734691,0.00394049,2909.5,2908.9,0.0102053]
[1644709734890,4.3009423,2909.6,2908.9,0.0102053]
[1644709735101,0.66050666,2909.6,2908.9,0.0102053]
[1644709735301,0.01414319,2909.6,2908.9,0.0102053]
[1644709735497,0.01414319,2909.6,2909.0,0.1718]
[1644709735498,0.00394049,2909.6,2909.0,0.1718]
[1644709735700,0.01414365,2909.6,2909.0,0.1718]
[1644709736698,0.00394049,2909.6,2909.0,0.1718]
[1644709736901,0.01414376,2909.6,2908.9,0.01020587]
[1644709737099,0.01414376,2909.6,2908.9,1.15609118]
[1644709737299,0.01414376,2909.6,2909.0,0.1718]
[1644709737499,0.01020327,2909.6,2909.0,0.1718]
[1644709737899,0.00394049,2909.8,2909.0,0.1718]
[1644709738100,0.01020327,2909.6,2909.0,0.1718]
[1644709739141,0.87327402,2909.8,2909.0,0.1718]
[1644709739443,0.01020327,2909.6,2909.0,0.1718]
[1644709740243,0.00394049,2909.8,2909.0,0.1718]
[1644709740443,0.01020327,2909.6,2909.0,0.1718]
[1644709741442,0.82210396,2910.0,2909.0,0.34389129]
[1644709741643,0.01020327,2909.6,2909.0,0.34389129]
[1644709742496,0.01020327,2909.6,2909.0,0.17209129]
[1644709742694,0.65030396,2909.8,2908.6,3.63209129]
[1644709742894,0.01020327,2909.6,2908.9,0.01020587]
[1644709743094,0.01414376,2909.6,2908.9,0.01020587]
[1644709743297,0.01020327,2909.6,2908.9,0.01020587]
[1644709743894,0.00394049,2909.7,2908.6,1.43023042]
[1644709744097,0.98256358,2909.4,2908.9,0.01020576]
[1644709744599,0.78256358,2909.4,2908.9,0.01020576]
[1644709744796,0.00394049,2909.5,2908.9,0.01020576]
[1644709744997,3.48460182,2909.6,2908.6,0.85921]
[1644709745297,3.49480475,2909.6,2908.9,0.01020553]
[1644709745496,0.01414342,2909.6,2908.9,0.01020553]
[1644709746139,0.01414342,2909.6,2909.2,0.85732679]
[1644709746341,0.00394049,2909.7,2909.2,0.85732679]
[1644709746540,0.01020316,2909.6,2909.2,0.85732679]
[1644709747145,0.01020316,2909.6,2908.9,0.01020576]
[1644709747442,0.00394049,2909.9,2908.7,2.6703]
[1644709747642,0.01020316,2909.6,2908.9,0.01020576]
[1644709748042,0.01020316,2909.6,2909.0,0.84160404]
[1644709748642,0.00394049,2909.9,2909.0,0.84160404]
[1644709749044,0.01020327,2909.6,2909.0,0.3]
[1644709749242,0.01020327,2909.6,2908.9,0.01020587]
[1644709749691,0.01020327,2909.6,2908.9,0.18229716]
[1644709749889,0.17574049,2909.9,2908.9,0.17209129]
[1644709750190,0.00394049,2909.9,2909.2,0.94394544]
[1644709750390,0.01020316,2909.6,2909.2,0.94394544]
[1644709750588,1.46230606,2909.5,2909.3,0.3]
[1644709751192,0.00394049,2910.2,2909.3,0.3]
[1644709751394,0.0102035,2909.6,2909.3,0.3]
[1644709751991,1.46224778,2909.5,2909.3,0.3]
[1644709752195,0.00394049,2910.1,2909.3,0.3]
[1644709752393,1.462248,2910.0,2909.3,0.3]
[1644709752594,0.01020361,2909.6,2909.3,0.3]
[1644709753444,0.00394049,2910.1,2909.3,0.3]
[1644709753644,0.01020361,2909.6,2909.3,0.4718]
[1644709754045,0.01020361,2909.6,2909.3,0.1718]
[1644709754647,0.00394049,2910.1,2909.3,0.1718]
[1644709754849,0.00953503,2909.6,2909.3,0.1718]
[1644709755849,0.00394049,2910.1,2909.3,0.1718]
[1644709756149,0.00953503,2909.6,2909.3,0.1718]
[1644709757197,0.00394049,2910.1,2909.3,0.1718]
[1644709757401,0.00953503,2909.6,2909.3,0.1718]
[1644709757798,0.00953503,2909.6,2909.3,1.01106543]
[1644709758200,0.00394049,2910.1,2909.3,1.01106543]
[1644709758399,1.46217112,2910.0,2909.3,1.01106543]
[1644709758600,0.00953503,2909.6,2909.3,1.01106543]
[1644709759001,0.00953503,2909.6,2909.4,0.1718]
[1644709759301,0.00953503,2909.6,2909.4,0.64389129]
[1644709759502,0.00394049,2910.2,2909.4,0.4718]
[1644709759701,0.13819996,2910.6,2909.5,0.17209129]
[1644709759702,1.46208045,2910.1,2909.5,0.17209129]
[1644709759904,1.46208045,2910.0,2909.5,0.66709129]
[1644709760300,0.00394049,2910.5,2909.5,0.66709129]
[1644709760500,1.4620748,2910.4,2909.5,0.66709129]
[1644709760701,0.00394049,2910.3,2909.6,0.34389129]
[1644709760938,0.00394049,2910.3,2909.8,0.84071674]
[1644709760939,1.4620748,2910.2,2909.8,0.84071674]
[1644709761141,1.4620748,2910.2,2909.8,1.44071674]
[1644709761345,0.00394049,2910.6,2909.8,1.61280803]
[1644709761543,1.46202846,2910.5,2909.9,0.1718]
[1644709762143,1.46202846,2910.5,2910.0,0.8588]
[1644709762343,1.46202846,2910.5,2910.0,1.1588]
[1644709762546,1.46202846,2910.5,2910.0,1.4588]
[1644709763347,0.01016861,2910.4,2910.0,1.4588]
[1644709763547,1.46202846,2910.3,2910.0,1.4588]
[1644709763945,1.46202846,2910.3,2910.0,0.3]
[1644709764146,1.46202846,2910.3,2910.1,0.3]
[1644709764348,1.46202846,2910.3,2909.9,2.10693262]
[1644709764601,0.01016873,2910.3,2909.9,2.10693262]
[1644709764998,0.01016873,2910.3,2909.9,1.6]
[1644709765497,0.00394049,2910.6,2909.9,1.6]
[1644709765697,0.01016879,2910.2,2909.9,1.6]
[1644709766702,0.00394049,2910.6,2909.9,1.6]
[1644709766902,1.46199937,2910.5,2909.9,1.6]
[1644709767103,0.00859069,2910.2,2909.9,1.6]
[1644709768003,0.00394049,2910.6,2909.9,1.6]
[1644709768203,1.46198525,2910.5,2909.9,1.6]
[1644709768442,2.59086216,2910.5,2909.9,1.6]
[1644709768641,1.46198525,2910.4,2909.9,1.6]
[1644709768941,1.46198525,2910.4,2909.9,0.6]
[1644709769142,1.46198525,2910.4,2909.8,1.60776587]
[1644709769341,1.46592574,2910.4,2909.8,1.60776587]
[1644709769543,1.46198525,2910.3,2909.8,1.60776587]
[1644709769745,0.00394049,2910.4,2909.8,1.095]
[1644709769943,1.46205411,2910.3,2909.8,1.095]
[1644709770144,1.46205411,2910.3,2909.8,1.26709129]
[1644709770348,0.00394049,2910.6,2909.8,1.26709129]
[1644709770548,1.46204537,2910.5,2909.8,1.26709129]
[1644709770750,1.46204537,2910.5,2909.8,1.095]
[1644709770951,1.46204537,2910.5,2909.8,0.3]
[1644709771151,1.46204537,2910.5,2909.9,0.3]
[1644709771352,0.00394049,2910.4,2909.7,0.4718]
[1644709771650,1.47221404,2910.3,2909.7,0.4718]
[1644709771850,1.46204537,2910.2,2909.7,0.4718]
[1644709772101,1.46598586,2910.2,2909.7,0.4718]
[1644709772297,0.00394049,2910.2,2909.7,0.4718]
[1644709772597,0.00394049,2910.4,2909.7,0.4718]
[1644709772797,1.46208289,2910.3,2909.7,0.4718]
[1644709773004,0.01016898,2910.1,2909.7,0.3]
[1644709773300,1.46208289,2910.0,2909.0,0.43197267]
[1644709773501,1.46208289,2910.0,2909.0,0.01017267]
[1644709773502,1.10709666,2909.2,2909.0,0.01017267]
[1644709773698,0.89999999,2909.6,2909.0,0.01017267]
[1644709773899,2.6166655,2909.5,2908.3,0.25]
[1644709774099,2.6166655,2909.5,2909.0,0.01017105]
[1644709774100,1.0543,2909.5,2909.0,0.01017105]
[1644709774300,1.4624402,2909.4,2909.0,0.01017105]
[1644709774899,2.57948751,2909.4,2909.0,0.01017105]
[1644709775102,1.4624402,2909.3,2908.4,1.15876834]
[1644709775298,3.45291878,2909.2,2908.3,0.25]
[1644709775499,1.0543,2909.5,2909.0,0.01017098]
[1644709775500,3.63149578,2909.4,2909.0,0.01017098]
[1644709775702,1.46252166,2909.3,2909.0,0.01017098]
[1644709775942,3.39383333,2909.2,2909.0,0.01017098]
[1644709776143,3.64364761,2909.4,2909.0,0.01017098]
[1644709776344,3.64364761,2909.4,2908.3,1.25]
[1644709776345,1.46249869,2909.3,2908.3,1.25]
[1644709776543,1.46249869,2909.3,2909.0,0.01017105]
[1644709776544,4.60662938,2909.2,2909.0,0.01017105]
[1644709776749,0.92455742,2909.2,2909.0,0.01017105]
[1644709777351,3.49794394,2909.4,2909.0,0.01017105]
[1644709777551,1.4625012,2909.3,2908.4,0.3]
[1644709777749,1.4625012,2909.3,2909.0,0.01017105]
[1644709778250,0.87462936,2909.4,2909.0,0.01017105]
[1644709778449,1.46244416,2909.3,2909.0,0.01017105]
[1644709778648,1.46244416,2909.3,2908.5,0.1718]
[1644709778849,4.85859093,2909.3,2908.5,0.1718]
[1644709779050,1.46244416,2909.2,2909.0,0.01017098]
[1644709779452,0.87462936,2909.4,2909.0,0.01017098]
[1644709779692,1.46248477,2909.3,2909.0,0.01017098]
[1644709779992,1.46248477,2909.3,2908.5,0.1718]
[1644709779993,4.91845403,2909.3,2908.5,0.1718]
[1644709780193,4.91845403,2909.3,2909.0,0.01017098]
[1644709780194,1.46248477,2909.2,2909.0,0.01017098]
[1644709780392,3.48182669,2909.1,2909.0,0.01017098]
[1644709780595,1.46248477,2909.1,2909.0,0.01017098]
[1644709780795,1.46248477,2909.2,2909.0,0.01017098]
[1644709780993,1.46248477,2909.1,2909.0,0.01017098]
[1644709781193,1.46248477,2909.1,2908.5,0.1718]
[1644709781393,0.87462936,2909.4,2908.5,0.1718]